{"text_format":"1","workbook":"xlsx","n_sheets":3,"sheets":["Pasiūlymas","Pastaba","Subtiekėjai ir priedai"],"not_rendered":{"charts":0,"images":0,"macros":1,"external_links":0,"defined_names":0,"comments":0,"pivot_tables":0},"unopened":[],"bounds":{"document_bytes":16777216,"sheet_cells":100000,"rows_first":2000,"rows_last":500,"rows_between":2000,"halvings":0,"cell_chars":16384,"cell_head_chars":4096},"cells_cut":0,"cells_raw":0,"read":"whole","date_system":"1900"}

{"sheet":"Pasiūlymas","index":0,"n_rows":258,"n_cols":7,"rows_kept":258,"cut":false,"hidden":false,"merged":[[27,0,27,5],[28,0,28,5],[24,0,24,5],[25,0,25,5],[26,0,26,5],[18,0,18,1],[18,2,18,5],[23,0,23,5],[19,0,19,1],[20,0,20,1],[19,2,19,5],[20,2,20,5],[22,0,22,5],[29,0,29,2],[29,3,29,5],[11,0,11,1],[11,2,11,5],[12,0,12,1],[12,2,12,5],[13,0,13,1],[13,2,13,5],[14,0,14,1],[14,2,14,5],[15,0,15,1],[15,2,15,5],[16,0,16,1],[16,2,16,5],[17,0,17,1],[17,2,17,5]]}
[]
["PIRKIMO SĄLYGŲ PRIEDAS \"PASIŪLYMŲ FORMA\""]
[]
["IŠORINĖ TARPLABORATORINĖ KONTROLĖ"]
[]
["Kam:","VšĮ LSMU Kauno ligoninė"]
[]
["Data:","2022-03-02"]
["Nr.:","KP-22-08"]
["Vieta:","Vilnius"]
[]
["Tiekėjo pavadinimas / Ūkio subjektų grupės nariai:",null,"UAB „LABORATORINĖ MEDICINA“"]
["Tiekėjo kodas (-ai):",null,124635920]
["Tiekėjo adresas (-ai):",null,"M. Marcinkevičiaus g. 1-2, LT-08433 Vilnius"]
["Tiekėjo PVM mokėtojo kodas(-ai):",null,"LT100001092010"]
["Tiekėjo / Ūkio subjektų grupės atsakingo partnerio sąskaitos numeris, banko pavadinimas ir banko kodas (-ai):",null,"LT74 7044 0600 0131 4862, AB SEB bankas, B.k. 70440"]
["Asmens atsakingo už pasiūlymą vardas, pavardė:",null,"Direktoriaus pavaduotojas Andrejus Coj"]
["Asmens atsakingo už pasiūlymą telefono numeris, el. pašto adresas:",null,"tel. +370 640 40008, el. paštas: Laboratorine.medicina@gmail.com"]
["Tiekėjo / Ūkio subjektų grupės, laimėjimo atveju, pasirašančio sutartį asmens vardas, pavardė, pareigos:",null,"Direktorius Alvydas Preikšaitis"]
["Tiekėjo / Ūkio subjektų grupės, laimėjimo atveju, už sutarties vykdymą atsakingo asmens vardas, pavardė, telefono numeris, elektroninio pašto adresas:",null,"Direktoriaus pavaduotojas Andrejus Coj, tel. +370 640 40008, el. paštas: Laboratorine.medicina@gmail.com"]
["(1) Tiekėjo / Ūkio subjektų grupės narių, (2) ūkio subjektų, kurių pajėgumais remiamasi, ir (3) jei pašalinimo pagrindai taikomi visiems subtiekėjams - subtiekėjų, kolegialaus priežiūros organo (Stebėtojų tarybos) ir (ar) kolegialaus valdymo organo (Valdybos) narių sąrašas (jei sudaryta) ir (ar) asmuo, kuriam suteikti VPĮ 46 str. 2 d. 2 p. numatyti įgaliojimai"]
[]
["Tiekėjo patvirtinimai:"]
["1. Šiuo pasiūlymu pažymime, kad sutinkame su visomi pirkimo sąlygomis, nustatytomis:"]
["1.1. viešojo pirkimo dokumentuose"]
["1.2. kituose pirkimo dokumentuose (jų paaiškinimuose, papildymuose)."]
["2. Patvirtiname, kad informacija ir duomenys, pateikti pasiūlyme, yra teisingi ir apima viską, ko reikia tinkamam sutarties įvykdymui"]
["3. Patvirtiname, kad jei pasiūlyme nenurodyti kolegialaus priežiūros/valdymo organų nariai, šie organai juridiniuose asmenyse nėra sudaryti (taikoma, kai pirkimo dokumentuose nustatyti pašalinimo pagrindai)."]
["4. Pasiūlymas galioja iki termino, nustatyto pirkimo dokumentuose."]
["5. Tais atvejais, kai pagal galiojančius teisės aktus tiekėjui nereikia mokėti PVM, jis nurodo priežastis, dėl kurių PVM nemoka:"]
["6. Tiekėjas kainas pateikia, nurodydamas ne daugiau skaičių po kablelio, nei leidžiama pirkimo dokumentuose."]
["1. DALIS","AUTOMATIZUOTAS KRAUJO TYRIMAS"]
[]
["Tiekėjo pasiūlymas:"]
["Nr.","Pavadinimas","Kiekis","Mato vienetas","Kaina be PVM, Eur","Suma be PVM, Eur"]
["1.","Automatizuotas kraujo tyrimas"]
["1.1.","Automatizuotas kraujo tyrimas 5 dalių leukocitų diferenciacijos hematologiniam analizatoriui ",6,"vnt.",80,{"$f":"IF(ISBLANK(E37),\"\", PRODUCT(C37,E37))","v":480}]
[null,null,null,null,"Suma be PVM",{"$f":"IF(F37=\"\",\"\",SUM(F37:F37))","v":480},{"$f":"IF(F37=\"\",\"Neužpildytos visos objektų kainos\",\"\")","v":""}]
[null,null,null,null,"PVM suma",{"$f":"F38*21%","v":100.8}]
[null,null,null,null,"Suma su PVM",{"$f":"IF(ISBLANK(F39), \"\", SUM(F38:F39))","v":580.79999999999995}]
[]
[]
[]
["2. DALIS","MIKROSKOPINIS RETIKULIOCITŲ TYRIMAS"]
[]
["Tiekėjo pasiūlymas:"]
["Nr.","Pavadinimas","Kiekis","Mato vienetas","Kaina be PVM, Eur","Suma be PVM, Eur"]
["2.","Mikroskopinis retikuliocitų tyrimas"]
["2.1.","Mikroskopinis retikuliocitų tyrimas",6,"vnt.",80,{"$f":"IF(ISBLANK(E49),\"\", PRODUCT(C49,E49))","v":480}]
[null,null,null,null,"Suma be PVM",{"$f":"IF(F49=\"\",\"\",SUM(F49:F49))","v":480},{"$f":"IF(F49=\"\",\"Neužpildytos visos objektų kainos\",\"\")","v":""}]
[null,null,null,null,"PVM suma",{"$f":"F50*21%","v":100.8}]
[null,null,null,null,"Suma su PVM",{"$f":"IF(ISBLANK(F51), \"\", SUM(F50:F51))","v":580.79999999999995}]
[]
[]
[]
["3. DALIS","KRAUJO TEPINĖLIO CITOMORFOLOGINIS TYRIMAS"]
[]
["Tiekėjo pasiūlymas:"]
["Nr.","Pavadinimas","Kiekis","Mato vienetas","Kaina be PVM, Eur","Suma be PVM, Eur"]
["3.","Kraujo tepinėlio citomorfologinis tyrimas"]
["3.1.","Kraujo tepinėlio citomorfologinis tyrimas",6,"vnt.",110,{"$f":"IF(ISBLANK(E61),\"\", PRODUCT(C61,E61))","v":660}]
[null,null,null,null,"Suma be PVM",{"$f":"IF(F61=\"\",\"\",SUM(F61:F61))","v":660},{"$f":"IF(F61=\"\",\"Neužpildytos visos objektų kainos\",\"\")","v":""}]
[null,null,null,null,"PVM suma",{"$f":"F62*21%","v":138.6}]
[null,null,null,null,"Suma su PVM",{"$f":"IF(ISBLANK(F63), \"\", SUM(F62:F63))","v":798.6}]
[]
[]
[]
["4. DALIS","KRAUJO PARAZITŲ TYRIMAS TEPINĖLYJE "]
[]
["Tiekėjo pasiūlymas:"]
["Nr.","Pavadinimas","Kiekis","Mato vienetas","Kaina be PVM, Eur","Suma be PVM, Eur"]
["4.","Kraujo parazitų tyrimas tepinėlyje "]
["4.1.","Kraujo parazitų tyrimas tepinėlyje ",4,"vnt.",130,{"$f":"IF(ISBLANK(E73),\"\", PRODUCT(C73,E73))","v":520}]
[null,null,null,null,"Suma be PVM",{"$f":"IF(F73=\"\",\"\",SUM(F73:F73))","v":520},{"$f":"IF(F73=\"\",\"Neužpildytos visos objektų kainos\",\"\")","v":""}]
[null,null,null,null,"PVM suma",{"$f":"F74*21%","v":109.2}]
[null,null,null,null,"Suma su PVM",{"$f":"IF(ISBLANK(F75), \"\", SUM(F74:F75))","v":629.20000000000005}]
[]
[]
[]
["5. DALIS","AUTOMATIZUOTAS JUOSTELINIS ŠLAPIMO TYRIMAS"]
[]
["Tiekėjo pasiūlymas:"]
["Nr.","Pavadinimas","Kiekis","Mato vienetas","Kaina be PVM, Eur","Suma be PVM, Eur"]
["5.","Automatizuotas juostelinis šlapimo tyrimas"]
["5.1.","Automatizuotas juostelinis šlapimo tyrimas",6,"vnt.",80,{"$f":"IF(ISBLANK(E85),\"\", PRODUCT(C85,E85))","v":480}]
[null,null,null,null,"Suma be PVM",{"$f":"IF(F85=\"\",\"\",SUM(F85:F85))","v":480},{"$f":"IF(F85=\"\",\"Neužpildytos visos objektų kainos\",\"\")","v":""}]
[null,null,null,null,"PVM suma",{"$f":"F86*21%","v":100.8}]
[null,null,null,null,"Suma su PVM",{"$f":"IF(ISBLANK(F87), \"\", SUM(F86:F87))","v":580.79999999999995}]
[]
[]
[]
["6. DALIS","ŠLAPIMO NUOSĖDŲ NATYVINIO TEPINĖLIO TYRIMAS "]
[]
["Tiekėjo pasiūlymas:"]
["Nr.","Pavadinimas","Kiekis","Mato vienetas","Kaina be PVM, Eur","Suma be PVM, Eur"]
["6.","Šlapimo nuosėdų natyvinio tepinėlio tyrimas "]
["6.1.","Šlapimo nuosėdų natyvinio tepinėlio tyrimas ",6,"vnt.",55,{"$f":"IF(ISBLANK(E97),\"\", PRODUCT(C97,E97))","v":330}]
[null,null,null,null,"Suma be PVM",{"$f":"IF(F97=\"\",\"\",SUM(F97:F97))","v":330},{"$f":"IF(F97=\"\",\"Neužpildytos visos objektų kainos\",\"\")","v":""}]
[null,null,null,null,"PVM suma",{"$f":"F98*21%","v":69.3}]
[null,null,null,null,"Suma su PVM",{"$f":"IF(ISBLANK(F99), \"\", SUM(F98:F99))","v":399.3}]
[]
[]
[]
["7. DALIS","IŠORINĖ KOKYBĖS KONTROLĖ ŠLAPIMO NUOSĖDOMS"]
[]
["Tiekėjo pasiūlymas:"]
["Nr.","Pavadinimas","Kiekis","Mato vienetas","Kaina be PVM, Eur","Suma be PVM, Eur"]
["7.","Išorinė kokybės kontrolė šlapimo nuosėdoms"]
["7.1.","Išorinė kokybės kontrolė šlapimo nuosėdoms",6,"vnt.",120,{"$f":"IF(ISBLANK(E109),\"\", PRODUCT(C109,E109))","v":720}]
[null,null,null,null,"Suma be PVM",{"$f":"IF(F109=\"\",\"\",SUM(F109:F109))","v":720},{"$f":"IF(F109=\"\",\"Neužpildytos visos objektų kainos\",\"\")","v":""}]
[null,null,null,null,"PVM suma",{"$f":"F110*21%","v":151.19999999999999}]
[null,null,null,null,"Suma su PVM",{"$f":"IF(ISBLANK(F111), \"\", SUM(F110:F111))","v":871.2}]
[]
[]
[]
["8. DALIS","BIOCHEMINIAI TYRIMAI "]
[]
["Tiekėjo pasiūlymas:"]
["Nr.","Pavadinimas","Kiekis","Mato vienetas","Kaina be PVM, Eur","Suma be PVM, Eur"]
["8.","Biocheminiai tyrimai "]
["8.1.","Kalis, natris, chloras, gliukozė, šlapalas, bendras bilirubinas, tiesioginis bilirubinas, CRB ",6,"vnt.",205,{"$f":"IF(ISBLANK(E121),\"\", PRODUCT(C121,E121))","v":1230}]
[null,null,null,null,"Suma be PVM",{"$f":"IF(F121=\"\",\"\",SUM(F121:F121))","v":1230},{"$f":"IF(F121=\"\",\"Neužpildytos visos objektų kainos\",\"\")","v":""}]
[null,null,null,null,"PVM suma",{"$f":"F122*21%","v":258.3}]
[null,null,null,null,"Suma su PVM",{"$f":"IF(ISBLANK(F123), \"\", SUM(F122:F123))","v":1488.3}]
[]
[]
[]
["9. DALIS","BIOCHEMINIAI TYRIMAI "]
[]
["Tiekėjo pasiūlymas:"]
["Nr.","Pavadinimas","Kiekis","Mato vienetas","Kaina be PVM, Eur","Suma be PVM, Eur"]
["9.","Biocheminiai tyrimai "]
["9.1.","Pro-BNP, troponinas I, CK-MB ",6,"vnt.",200,{"$f":"IF(ISBLANK(E133),\"\", PRODUCT(C133,E133))","v":1200}]
[null,null,null,null,"Suma be PVM",{"$f":"IF(F133=\"\",\"\",SUM(F133:F133))","v":1200},{"$f":"IF(F133=\"\",\"Neužpildytos visos objektų kainos\",\"\")","v":""}]
[null,null,null,null,"PVM suma",{"$f":"F134*21%","v":252}]
[null,null,null,null,"Suma su PVM",{"$f":"IF(ISBLANK(F135), \"\", SUM(F134:F135))","v":1452}]
[]
[]
[]
["10. DALIS","BIOCHEMINIAI TYRIMAI "]
[]
["Tiekėjo pasiūlymas:"]
["Nr.","Pavadinimas","Kiekis","Mato vienetas","Kaina be PVM, Eur","Suma be PVM, Eur"]
["10.","Biocheminiai tyrimai "]
["10.1.","Bendras baltymas, kreatininas, šlapimo rūgštis, kalcis, magnis, geležis, cholesterolis ir jo frakcijos, trigliceridai, AST, ALT, šarminė fosfotazė ",6,"vnt.",60,{"$f":"IF(ISBLANK(E145),\"\", PRODUCT(C145,E145))","v":360}]
[null,null,null,null,"Suma be PVM",{"$f":"IF(F145=\"\",\"\",SUM(F145:F145))","v":360},{"$f":"IF(F145=\"\",\"Neužpildytos visos objektų kainos\",\"\")","v":""}]
[null,null,null,null,"PVM suma",{"$f":"F146*21%","v":75.599999999999994}]
[null,null,null,null,"Suma su PVM",{"$f":"IF(ISBLANK(F147), \"\", SUM(F146:F147))","v":435.6}]
[]
[]
[]
["11. DALIS","BIOCHEMINIAI TYRIMAI "]
[]
["Tiekėjo pasiūlymas:"]
["Nr.","Pavadinimas","Kiekis","Mato vienetas","Kaina be PVM, Eur","Suma be PVM, Eur"]
["11.","Biocheminiai tyrimai "]
["11.1.","Kraujo dujos ir pH ",6,"vnt.",80,{"$f":"IF(ISBLANK(E157),\"\", PRODUCT(C157,E157))","v":480}]
[null,null,null,null,"Suma be PVM",{"$f":"IF(F157=\"\",\"\",SUM(F157:F157))","v":480},{"$f":"IF(F157=\"\",\"Neužpildytos visos objektų kainos\",\"\")","v":""}]
[null,null,null,null,"PVM suma",{"$f":"F158*21%","v":100.8}]
[null,null,null,null,"Suma su PVM",{"$f":"IF(ISBLANK(F159), \"\", SUM(F158:F159))","v":580.79999999999995}]
[]
[]
[]
["12. DALIS","BIOCHEMINIAI TYRIMAI "]
[]
["Tiekėjo pasiūlymas:"]
["Nr.","Pavadinimas","Kiekis","Mato vienetas","Kaina be PVM, Eur","Suma be PVM, Eur"]
["12.","Biocheminiai tyrimai "]
["12.1.","Alfa amilazė, pankreatinė amilazė, LDH, laktatas, fosforas, albuminas, GGT, feritinas, PSA, amoniakas, prokalcitoninas, vitaminas D. ",6,"vnt.",380,{"$f":"IF(ISBLANK(E169),\"\", PRODUCT(C169,E169))","v":2280}]
[null,null,null,null,"Suma be PVM",{"$f":"IF(F169=\"\",\"\",SUM(F169:F169))","v":2280},{"$f":"IF(F169=\"\",\"Neužpildytos visos objektų kainos\",\"\")","v":""}]
[null,null,null,null,"PVM suma",{"$f":"F170*21%","v":478.79999999999995}]
[null,null,null,null,"Suma su PVM",{"$f":"IF(ISBLANK(F171), \"\", SUM(F170:F171))","v":2758.8}]
[]
[]
[]
["13. DALIS","BIOCHEMINIAI TYRIMAI "]
[]
["Tiekėjo pasiūlymas:"]
["Nr.","Pavadinimas","Kiekis","Mato vienetas","Kaina be PVM, Eur","Suma be PVM, Eur"]
["13.","Biocheminiai tyrimai "]
["13.1.","Vankomicinas ",4,"vnt.",125,{"$f":"IF(ISBLANK(E181),\"\", PRODUCT(C181,E181))","v":500}]
[null,null,null,null,"Suma be PVM",{"$f":"IF(F181=\"\",\"\",SUM(F181:F181))","v":500},{"$f":"IF(F181=\"\",\"Neužpildytos visos objektų kainos\",\"\")","v":""}]
[null,null,null,null,"PVM suma",{"$f":"F182*21%","v":105}]
[null,null,null,null,"Suma su PVM",{"$f":"IF(ISBLANK(F183), \"\", SUM(F182:F183))","v":605}]
[]
[]
[]
["14. DALIS","KREŠĖJIMO TYRIMAI "]
[]
["Tiekėjo pasiūlymas:"]
["Nr.","Pavadinimas","Kiekis","Mato vienetas","Kaina be PVM, Eur","Suma be PVM, Eur"]
["14.","Krešėjimo tyrimai "]
["14.1.","Protrombino laikas (SPA), DATL, fibrinogenas, D-dimerai",6,"vnt.",205,{"$f":"IF(ISBLANK(E193),\"\", PRODUCT(C193,E193))","v":1230}]
[null,null,null,null,"Suma be PVM",{"$f":"IF(F193=\"\",\"\",SUM(F193:F193))","v":1230},{"$f":"IF(F193=\"\",\"Neužpildytos visos objektų kainos\",\"\")","v":""}]
[null,null,null,null,"PVM suma",{"$f":"F194*21%","v":258.3}]
[null,null,null,null,"Suma su PVM",{"$f":"IF(ISBLANK(F195), \"\", SUM(F194:F195))","v":1488.3}]
[]
[]
[]
["15. DALIS","MOLEKULINIAI TYRIMAI "]
[]
["Tiekėjo pasiūlymas:"]
["Nr.","Pavadinimas","Kiekis","Mato vienetas","Kaina be PVM, Eur","Suma be PVM, Eur"]
["15.","Molekuliniai tyrimai "]
["15.1.","Anti-SARS-CoV-2 IgG ",4,"vnt.",190,{"$f":"IF(ISBLANK(E205),\"\", PRODUCT(C205,E205))","v":760}]
[null,null,null,null,"Suma be PVM",{"$f":"IF(F205=\"\",\"\",SUM(F205:F205))","v":760},{"$f":"IF(F205=\"\",\"Neužpildytos visos objektų kainos\",\"\")","v":""}]
[null,null,null,null,"PVM suma",{"$f":"F206*21%","v":159.6}]
[null,null,null,null,"Suma su PVM",{"$f":"IF(ISBLANK(F207), \"\", SUM(F206:F207))","v":919.6}]
[]
[]
[]
["16. DALIS","MIKROBIOLOGINIAI TYRIMAI "]
[]
["Tiekėjo pasiūlymas:"]
["Nr.","Pavadinimas","Kiekis","Mato vienetas","Kaina be PVM, Eur","Suma be PVM, Eur"]
["16.","Mikrobiologiniai tyrimai "]
["16.1.","Bakterijų kultūrų identifikavimas ir jautrumo nustatymas ",4,"vnt.",145,{"$f":"IF(ISBLANK(E217),\"\", PRODUCT(C217,E217))","v":580}]
[null,null,null,null,"Suma be PVM",{"$f":"IF(F217=\"\",\"\",SUM(F217:F217))","v":580},{"$f":"IF(F217=\"\",\"Neužpildytos visos objektų kainos\",\"\")","v":""}]
[null,null,null,null,"PVM suma",{"$f":"F218*21%","v":121.8}]
[null,null,null,null,"Suma su PVM",{"$f":"IF(ISBLANK(F219), \"\", SUM(F218:F219))","v":701.8}]
[]
[]
[]
["17. DALIS","MIKROBIOLOGINIAI TYRIMAI "]
[]
["Tiekėjo pasiūlymas:"]
["Nr.","Pavadinimas","Kiekis","Mato vienetas","Kaina be PVM, Eur","Suma be PVM, Eur"]
["17.","Mikrobiologiniai tyrimai "]
["17.1.","Morfologinis Gramo būdu dažytų tepinėlių tyrimas ",4,"vnt.",100,{"$f":"IF(ISBLANK(E229),\"\", PRODUCT(C229,E229))","v":400}]
[null,null,null,null,"Suma be PVM",{"$f":"IF(F229=\"\",\"\",SUM(F229:F229))","v":400},{"$f":"IF(F229=\"\",\"Neužpildytos visos objektų kainos\",\"\")","v":""}]
[null,null,null,null,"PVM suma",{"$f":"F230*21%","v":84}]
[null,null,null,null,"Suma su PVM",{"$f":"IF(ISBLANK(F231), \"\", SUM(F230:F231))","v":484}]
[]
[]
[]
["18. DALIS","INFEKCIJŲ SEROLOGIJA "]
[]
["Tiekėjo pasiūlymas:"]
["Nr.","Pavadinimas","Kiekis","Mato vienetas","Kaina be PVM, Eur","Suma be PVM, Eur"]
["18.","Infekcijų serologija "]
["18.1.","Citomegalo viruso IgM ir IgG ",4,"vnt.",120,{"$f":"IF(ISBLANK(E241),\"\", PRODUCT(C241,E241))","v":480}]
["18.2.","Anti-HSV ½ IgG, Anti-HSV  ½  IgM ",4,"vnt.",120,480]
["18.3.","Varicella Zoster IgG, IgM",4,"vnt.",105,420]
["18.4.","Išorinė kokybės kontrolė Hapatito A viruso (HAV) IgM ",4,"vnt.",100,400]
["18.5.","Hepatito B viruso (HBV) HBsAg, anti-HBcor anti-HBc-IgM, HBEAg, anti-HBe, anti-HBs",4,"vnt.",220,880]
["18.6.","Hepatito C (HCV) antikūnai ",4,"vnt.",0,0]
["18.7.","ŽIV-1/ŽIV-2 antikūnai ",4,"vnt.",145,580]
["18.8.","T.gondii IgM, IgG ",4,"vnt.",90,360]
["18.9.","Treponema pallidum IgM-IgG",4,"vnt.",110,440]
["18.10.","Anti-EBV IgM, Anti-EBV IgG",4,"vnt.",90,360]
["18.11.","Mycoplasma pneumoniae IgM ",4,"vnt.",105,420]
["18.12.","Clamydia pneumoniae IgM ",4,"vnt.",100,400]
["18.13.","Boreliozės (Laimo ligos) IgM, IgG ",4,"vnt.",105,420]
["18.14.","H. pylori IgG ",4,"vnt.",90,360]
["18.15.","Erkinio encefalito viruso IgG ir IgM ",4,"vnt.",120,480]
[null,null,null,null,"Suma be PVM",{"$f":"IF((SUMPRODUCT(--(F241:F255=\"\"))>0), \"\", SUM(F241:F255))","v":6480},{"$f":"IF((SUMPRODUCT(--(F241:F255=\"\"))>0), \"Neužpildytos visų objektų kainos\", \"\")","v":""}]
[null,null,null,null,"PVM suma",{"$f":"F256*21%","v":1360.8}]
[null,null,null,null,"Suma su PVM",{"$f":"IF(ISBLANK(F257), \"\", SUM(F256:F257))","v":7840.8}]

{"sheet":"Pastaba","index":1,"n_rows":2,"n_cols":2,"rows_kept":2,"cut":false,"hidden":false,"merged":[]}
["Pastaba: "]
[null,"18 pirkimo dalis. 18.6. pirkimo punktas. Hepatito C (HCV) antikūnai įeina į 18.5 pirkimo dalies programą, Labquality, kat. kodas 5095 (anti-HBs, 5093)"]

{"sheet":"Subtiekėjai ir priedai","index":2,"n_rows":100,"n_cols":11,"rows_kept":100,"cut":false,"hidden":false,"merged":[[23,0,23,1],[22,0,22,1],[21,0,21,1],[20,0,20,1],[19,0,19,1],[28,0,28,1],[27,0,27,1],[26,0,26,1],[25,0,25,1],[24,0,24,1],[23,2,23,4],[22,2,22,4],[21,2,21,4],[20,2,20,4],[19,2,19,4],[28,2,28,4],[27,2,27,4],[26,2,26,4],[25,2,25,4],[24,2,24,4],[23,5,23,7],[22,5,22,7],[21,5,21,7],[20,5,20,7],[19,5,19,7],[28,5,28,7],[27,5,27,7],[26,5,26,7],[25,5,25,7],[24,5,24,7],[23,8,23,9],[22,8,22,9],[21,8,21,9],[20,8,20,9],[19,8,19,9],[28,8,28,9],[27,8,27,9],[26,8,26,9],[25,8,25,9],[24,8,24,9],[16,0,16,10],[18,8,18,9],[18,5,18,7],[18,2,18,4],[18,0,18,1],[13,0,13,1],[12,0,12,1],[11,0,11,1],[10,0,10,1],[13,8,13,9],[12,8,12,9],[11,8,11,9],[10,8,10,9],[4,0,4,1],[5,5,5,7],[5,0,5,1],[9,0,9,1],[13,2,13,4],[12,2,12,4],[11,2,11,4],[10,2,10,4],[9,2,9,4],[13,5,13,7],[12,5,12,7],[11,5,11,7],[10,5,10,7],[9,5,9,7],[1,0,2,10],[30,0,30,9],[14,5,14,7],[8,5,8,7],[7,5,7,7],[6,5,6,7],[14,8,14,9],[8,8,8,9],[7,8,7,9],[6,8,6,9],[14,0,14,1],[8,0,8,1],[7,0,7,1],[6,0,6,1],[14,2,14,4],[8,2,8,4],[7,2,7,4],[9,8,9,9],[6,2,6,4],[5,2,5,4],[5,8,5,9],[4,8,4,9],[4,5,4,7],[4,2,4,4],[32,0,32,9],[34,7,34,9],[34,1,34,6],[45,7,45,9],[42,7,42,9],[37,7,37,9],[36,7,36,9],[35,7,35,9],[44,7,44,9],[43,7,43,9],[41,7,41,9],[40,7,40,9],[39,7,39,9],[38,7,38,9],[45,1,45,6],[44,1,44,6],[47,0,47,9],[52,4,52,9],[50,4,50,9],[52,0,52,3],[50,0,50,3],[38,1,38,6],[37,1,37,6],[36,1,36,6],[35,1,35,6],[43,1,43,6],[42,1,42,6],[41,1,41,6],[40,1,40,6],[39,1,39,6]]}
[]
["Ūkio subjektai (įskaitant kvazisubtiekėjus - fiziniai asmenys, kuriuos ketinama įdarbinti pirkimo laimėjimo atveju), kurių pajėgumais tiekėjas remiasi, kad atitiktų keliamus kvalifikacijos reikalavimus:"]
[]
[]
["Pavadinimas*",null,"Kodas, adresas",null,null,"Perduodami įsipareigojimai",null,null,"Perduodamų įsipareigojimų dalis nuo visos pirkimo sutarties (Eur arba %)",null,"Kval. Reikalavimo Nr."]
[]
[]
[]
[]
[]
[]
[]
[]
[]
[]
[]
["Subtiekėjams / subteikėjams / subrangovams numatomos perduoti veiklos (privaloma nurodyti) ir šių ūkio subjektų pavadinimai (jei žinomi):"]
[]
["Pavadinimas",null,"Kodas, adresas",null,null,"Perduodama veikla*",null,null,"Perduodamos veiklos dalis nuo visos pirkimo sutarties (Eur arba %)"]
[]
[]
[]
[]
[]
[]
[]
[]
[]
[]
[]
[]
[]
["Kartu su pasiūlymu pateikiami šie dokumentai:"]
[]
["Nr.","Dokumento  pavadinimas",null,null,null,null,null,"Dokumentas yra konfidencialus? Taip/Ne"]
[1,"Jungtinės veiklos kopija (jei taikoma)"]
[2,"Subtiekimo sutartis, ketinimų protokolas, preliminarios sutartys ar kiti dokumentai, patvirtinantys, kad laimėjus pirkimą tiekėjui bus prieinami kitų ūkio subjektų ištekliai (jei pasitelkiami kvalifikacijos atitikimui)"]
[]
[]
[]
[]
[]
[]
[]
[]
[]
[]
["Pasiūlyme nurodyta Prekės kaina, išskyrus jos sudedamąsias dalis, subtiekėjai, taip pat kita informacija, kuri teisės aktų nustatyta tvarka turi būti skelbiama arba kitokiu būdu viešai prieinama visuomenei, nėra laikoma konfidencialia informacija. Konfidencialią informaciją sudaro, visų pirma, komercinė (gamybinė) paslaptis ir konfidencialieji pasiūlymų aspektai. Informacija, kurią viešai skelbti įpareigoja Lietuvos Respublikos įstatymai, negali būti tiekėjo nurodoma kaip konfidenciali, todėl, tiekėjui nurodžius tokią informaciją kaip konfidencialią, perkančioji organizacija turi teisę ją skelbti. Jei tiekėjas nenurodo konfidencialios informacijos, laikoma, kad konfidencialios informacijos tiekėjo pasiūlyme nėra. Vadovaujantis Informacijos viešinimo Centrinėje viešųjų pirkimų informacinėje sistemoje tvarkos aprašu, patvirtintu Viešųjų pirkimų tarnybos direktoriaus 2017 m. birželio 19 d. įsakymu Nr. 1S-91 „Dėl Informacijos viešinimo Centrinėje viešųjų pirkimų informacinėje sistemoje tvarkos aprašo patvirtinimo“, perkančioji organizacija laimėjusio dalyvio pasiūlymą, išskyrus informaciją, kurią tiekėjas nurodė kaip konfidencialią, paskelbs CVP IS."]
[]
[]
["Tiekėjo arba jo įgalioto asmens pareigų pavadinimas:"]
[]
["Pasirašančio asmens vardas ir pavardė:"]
[]
[]
[]
[]
[]
[]
[]
[]
[]
[]
[]
[]
[]
[]
[]
[]
[]
[]
[]
[]
[]
[]
[]
[]
[]
[]
[]
[]
[]
[]
[]
[]
[]
[]
[]
[]
[]
[]
[]
[]
[]
[]
[]
[]
[]
[]
["6440 2022-02-22 09:18:24"]